[Event "2nd Father Cup Blitz 2023"]
[Site "Rasht"]
[Date "2023.12.07"]
[Round "5.1"]
[White "Azadi, Amirmohammad"]
[Black "Maghsoodloo, Parham"]
[Result "1/2-1/2"]
[ECO "A25"]
[WhiteElo "2250"]
[BlackElo "2742"]
[Annotator "TA"]
[PlyCount "89"]
[EventDate "2023.12.07"]
[EventType "swiss"]
[EventCountry "IRI"]
[SourceTitle "playchess.com"]
[Source "ChessBase"]
[SourceQuality "1"]
[TimeControl "300+2"]

{[%evp 12,89,22,21,22,25,55,13,39,27,38,33,29,16,55,34,83,77,80,78,79,77,85,74,92,74,85,87,90,95,101,89,139,139,129,104,109,111,151,145,141,84,86,76,162,157,160,172,164,152,163,156,147,164,177,106,111,-8,-8,-8,-8,-8,-8,-8,-8,-8,-8,-13,0,0,29,29,29,29,29,29,29,29,29,29]} 1. c4 {[%emt 0:00:02]} Nf6 {[%emt 0:00:09]} 2. g3 {[%emt 0:00:02]} e5 {[%emt 0:00:06]} 3. Bg2 {[%emt 0:00:01]} Bc5 {[%emt 0:00:02]} 4. Nc3 {[%emt 0:00:03]} O-O {[%emt 0:00:03]} 5. e3 {[%emt 0:00:01]} Re8 {[%emt 0:00:09]} 6. Nge2 {[%emt 0:00:02]} Nc6 {[%emt 0:00:05] was the old line (6...d6).} 7. O-O {[%emt 0:00:03]} a6 {[%emt 0:00:02] A25: English Opening vs King's Indian with ...Nc6 but without early d3.} 8. d4 {[%emt 0:00:07]} Ba7 {[%emt 0:00:02]} 9. b3 {[%emt 0:00:12]} (9. d5 $5 {[%cal Rd5c6]} Ne7 10. d6 $14) 9... d6 {[%emt 0:00:02] The position is equal.} 10. Bb2 {[%emt 0:00:02] [#]} h6 $146 {[%emt 0:00:13]} ({Predecessor:} 10... exd4 11. Nxd4 Nxd4 12. exd4 Rb8 13. a4 Bg4 14. f3 Be6 15. Qd2 c6 16. Kh1 d5 17. cxd5 Nxd5 {0-1 Miezis,N (2548)-Fedorchuk,S (2641) Vladimir Petrov Memorial op rapid 2014 (10)}) 11. Qd2 {[%emt 0:00:14]} Bf5 {[%emt 0:00:17]} 12. Nd5 {[%emt 0:00:31]} Bg4 {[%emt 0:01:00]} 13. dxe5 {[%emt 0:00:38]} dxe5 {[%emt 0:00:15]} (13... Nxe5 $14 {is more appropriate.} 14. Nxf6+ Qxf6) 14. h3 $16 {[%emt 0:00:14]} Bh5 {[%emt 0:00:11]} 15. Rfd1 {[%emt 0:00:37]} Qd6 {[%emt 0:00:34]} 16. g4 {[%emt 0:00:14]} Bg6 {[%emt 0:00:01]} 17. Ng3 {[%emt 0:00:01]} Rad8 {[%emt 0:00:11]} 18. Qe2 {[%emt 0:00:09]} Nxd5 {[%emt 0:00:02]} 19. Rxd5 {[%emt 0:00:05]} Qf8 {[%emt 0:00:15]} 20. Rad1 {[%emt 0:00:05]} f6 {[%emt 0:00:01]} 21. Be4 {[%emt 0:00:13]} Bf7 {[%emt 0:00:07]} (21... Bxe4 $142 22. Nxe4 Bb6) 22. Rd7 {[%emt 0:00:06]} Bb6 {[%emt 0:00:17][%cal Oc6d4]} 23. Qf3 {[%emt 0:00:03] Black must now prevent Qf5. White has more active pieces.} Rxd7 {[%emt 0:01:01]} (23... Nd4 $2 24. exd4 Rxd7 25. Qf5 $18) 24. Rxd7 {[%emt 0:00:02] Hoping for Qf5.} Rd8 {[%emt 0:00:09]} 25. Rxd8 {[%emt 0:01:14]} Qxd8 {[%emt 0:00:01]} 26. Bc3 {[%emt 0:00:00]} ({White should play} 26. Qf5 {Threatens to win with Qh7+.} g6 27. Qf3) 26... Qd7 {[%emt 0:00:05]} 27. h4 {[%emt 0:00:10]} Ne7 {[%emt 0:00:08]} (27... Bc5 $16) 28. g5 {[%emt 0:00:05][%mdl 64] [#] Deflection} hxg5 {[%emt 0:00:01]} 29. hxg5 {[%emt 0:00:01]} ({Worse is} 29. Bxb7 gxh4 30. Ne4 a5 $17) 29... fxg5 {[%emt 0:00:01]} 30. Bxe5 {[%emt 0:00:07][%cal Oe4h7] And now Bh7+! would win.} Ng6 {[%emt 0:00:05] [#]} 31. Bxg6 {[%emt 0:00:31]} Bxg6 {[%emt 0:00:01]} 32. Qxb7 {[%emt 0:00:01]} g4 {[%emt 0:00:17]} 33. c5 {[%emt 0:00:07]} ({Weaker is} 33. Qxa6 Qd1+ 34. Kh2 Qf3 $11) (33. Qa8+ $18 Kh7 34. Qh1+ (34. Qxa6 Qd1+ 35. Kh2 Qf3 $11) 34... Kg8 35. Qb7) 33... Bxc5 {[%emt 0:00:01]} 34. Qxc7 {[%emt 0:00:01]} (34. Qxa6 $16 Qd1+ 35. Kh2) 34... Qxc7 $11 {[%emt 0:00:06]} 35. Bxc7 $16 {[%emt 0:00:01][%mdl 4096] Endgame KBB-KBN} Bb1 {[%emt 0:00:02]} 36. a4 {[%emt 0:00:03]} Bc2 {[%emt 0:00:01]} 37. a5 {[%emt 0:00:02]} Kf7 {[%emt 0:00:05]} 38. Ne2 {[%emt 0:00:02]} Bxb3 {[%emt 0:00:01]} 39. Nd4 {[%emt 0:00:02]} Bd5 {[%emt 0:00:03]} 40. Kh2 {[%emt 0:00:02]} Bb4 {[%emt 0:00:05]} 41. Kg3 {[%emt 0:00:02] White has an edge.} Be1 {[%emt 0:00:01]} 42. Nc2 {[%emt 0:00:03]} Bc3 {[%emt 0:00:03]} 43. Kxg4 {[%emt 0:00:02]} Be4 {[%emt 0:00:01] This pair of bishops is nice.} 44. Nd4 {[%emt 0:00:01]} Bxd4 {[%emt 0:00:02]} 45. exd4 {[%emt 0:00:05] Blacks defense is rewarded with a draw.   Weighted Error Value: White=0.15 (very precise) /Black=0.13 (very precise)} 1/2-1/2

[Event "2nd Father Cup Blitz 2023"]
[Site "Rasht"]
[Date "2023.12.07"]
[Round "5.2"]
[White "Toufighi, Homayoon"]
[Black "Rastbod, Ali"]
[Result "1/2-1/2"]
[ECO "C03"]
[WhiteElo "2368"]
[BlackElo "2221"]
[Annotator "RC"]
[PlyCount "72"]
[EventDate "2023.12.07"]
[EventType "swiss"]
[EventCountry "IRI"]
[SourceTitle "playchess.com"]
[Source "ChessBase"]
[SourceQuality "1"]
[TimeControl "300+2"]

1. e4 {[%emt 0:00:06]} e6 {[%emt 0:00:13]} 2. d4 {[%emt 0:00:01]} d5 {[%emt 0:00:00]} 3. Nd2 {[%emt 0:00:03]} Be7 {[%emt 0:00:02]} 4. Ngf3 {[%emt 0:00:09]} Nf6 {[%emt 0:00:02]} 5. Bd3 {[%emt 0:00:01]} c5 {[%emt 0:00:02]} 6. exd5 {[%emt 0:00:04]} Qxd5 {[%emt 0:00:08]} 7. dxc5 {[%emt 0:00:03]} Qxc5 {[%emt 0:00:01]} 8. O-O {[%emt 0:00:03]} O-O {[%emt 0:00:01]} 9. Qe2 {[%emt 0:00:03]} Nbd7 {[%emt 0:00:03]} 10. Ne4 {[%emt 0:00:35]} Qc7 {[%emt 0:00:01]} 11. Bg5 {[%emt 0:00:03]} b6 {[%emt 0:00:35]} 12. Rad1 {[%emt 0:00:33]} Bb7 {[%emt 0:00:02]} 13. Bh4 {[%emt 0:00:05]} Rac8 {[%emt 0:01:17]} 14. Bg3 {[%emt 0:00:13]} Qc6 {[%emt 0:00:02]} 15. Nd6 {[%emt 0:00:40]} Bxd6 {[%emt 0:00:02]} 16. Bxd6 {[%emt 0:00:02]} Rfe8 {[%emt 0:00:37]} 17. Bb5 {[%emt 0:00:38]} Qxc2 {[%emt 0:00:08]} 18. Qxc2 {[%emt 0:00:02]} Rxc2 {[%emt 0:00:00]} 19. Ne5 {[%emt 0:00:06]} Rxb2 {[%emt 0:01:12]} 20. Bxd7 {[%emt 0:00:23]} Nxd7 {[%emt 0:00:02]} 21. Nxd7 {[%emt 0:00:02]} Rxa2 {[%emt 0:00:01]} 22. Ne5 {[%emt 0:00:16]} f6 {[%emt 0:00:21]} 23. Nf3 {[%emt 0:00:07]} e5 {[%emt 0:00:03]} 24. Rc1 {[%emt 0:00:07]} Rc8 {[%emt 0:00:08]} 25. Rxc8+ {[%emt 0:00:20]} Bxc8 {[%emt 0:00:01]} 26. Rc1 {[%emt 0:00:00]} Be6 {[%emt 0:00:01]} 27. h4 {[%emt 0:00:05]} h5 {[%emt 0:00:04]} 28. Rc7 {[%emt 0:00:07]} Bd5 {[%emt 0:00:05]} 29. Nxe5 {[%emt 0:00:37]} fxe5 {[%emt 0:00:03]} 30. Bxe5 {[%emt 0:00:01]} Bf7 {[%emt 0:00:11]} 31. Rc8+ {[%emt 0:00:03]} Kh7 {[%emt 0:00:01]} 32. Rc7 {[%emt 0:00:02]} Kg8 {[%emt 0:00:01]} 33. Rc8+ {[%emt 0:00:01]} Kh7 {[%emt 0:00:01]} 34. Rc7 {[%emt 0:00:01]} Kg8 {[%emt 0:00:01]} 35. Rc8+ {[%emt 0:00:11]} Kh7 {[%emt 0:00:01]} 36. Rc7 {[%emt 0:00:01]} Kg8 {[%emt 0:00:01]} 1/2-1/2

[Event "2nd Father Cup Blitz 2023"]
[Site "Rasht"]
[Date "2023.12.07"]
[Round "5.3"]
[White "Khoshkalam, Seyed Mehrab"]
[Black "Mahdavi, Reza"]
[Result "0-1"]
[ECO "E68"]
[WhiteElo "2266"]
[BlackElo "2312"]
[Annotator "RC"]
[PlyCount "110"]
[EventDate "2023.12.07"]
[EventType "swiss"]
[EventCountry "IRI"]
[SourceTitle "playchess.com"]
[Source "ChessBase"]
[SourceQuality "1"]
[TimeControl "300+2"]

1. Nf3 {[%emt 0:00:01]} Nf6 {[%emt 0:00:01]} 2. g3 {[%emt 0:00:00]} g6 {[%emt 0:00:01]} 3. Bg2 {[%emt 0:00:01]} Bg7 {[%emt 0:00:00]} 4. O-O {[%emt 0:00:02]} O-O {[%emt 0:00:02]} 5. d4 {[%emt 0:00:01]} d6 {[%emt 0:00:01]} 6. c4 {[%emt 0:00:01]} Nbd7 {[%emt 0:00:01]} 7. Nc3 {[%emt 0:00:06]} e5 {[%emt 0:00:01]} 8. e4 {[%emt 0:00:11]} exd4 {[%emt 0:00:02]} 9. Nxd4 {[%emt 0:00:01]} Nc5 {[%emt 0:00:07]} 10. h3 {[%emt 0:00:19]} Re8 {[%emt 0:00:01]} 11. Re1 {[%emt 0:00:01]} h6 {[%emt 0:00:01]} 12. Kh2 {[%emt 0:00:43]} a5 {[%emt 0:00:06]} 13. f4 {[%emt 0:00:07]} c6 {[%emt 0:00:11]} 14. b3 {[%emt 0:00:21]} Qb6 {[%emt 0:00:17]} 15. Be3 {[%emt 0:00:13]} Qb4 {[%emt 0:00:15]} 16. Qc2 {[%emt 0:00:01]} Qb6 {[%emt 0:00:30]} 17. Bg1 {[%emt 0:00:06]} Qc7 {[%emt 0:00:08]} 18. Rab1 {[%emt 0:00:04]} Bd7 {[%emt 0:00:18]} 19. a3 {[%emt 0:00:01]} Rad8 {[%emt 0:00:03]} 20. Rbd1 {[%emt 0:00:03]} Bc8 {[%emt 0:00:06]} 21. Re2 {[%emt 0:00:06]} h5 {[%emt 0:00:02]} 22. b4 {[%emt 0:00:21]} axb4 {[%emt 0:00:07]} 23. axb4 {[%emt 0:00:01]} Ne6 {[%emt 0:00:02]} 24. Nf3 {[%emt 0:00:05]} Nd7 {[%emt 0:00:29]} 25. Red2 {[%emt 0:00:18]} Nf6 {[%emt 0:00:10]} 26. Na4 {[%emt 0:00:05]} Qe7 {[%emt 0:00:24]} 27. Bb6 {[%emt 0:00:03]} Rd7 {[%emt 0:00:01]} 28. Nc3 {[%emt 0:00:07]} Nh7 {[%emt 0:00:18]} 29. h4 {[%emt 0:00:04]} Nf6 {[%emt 0:00:01]} 30. Kg1 {[%emt 0:00:05]} Ng4 {[%emt 0:00:04]} 31. Rd3 {[%emt 0:00:08]} Nf8 {[%emt 0:00:03]} 32. Qd2 {[%emt 0:00:13]} Qe6 {[%emt 0:00:09]} 33. Qa2 {[%emt 0:00:25]} d5 {[%emt 0:00:26]} 34. Ng5 {[%emt 0:00:08]} Qd6 {[%emt 0:00:10]} 35. c5 {[%emt 0:00:18]} Qf6 {[%emt 0:00:20]} 36. exd5 {[%emt 0:00:08]} Qf5 {[%emt 0:00:04]} 37. Be4 {[%emt 0:00:09]} Rxe4 {[%emt 0:00:14]} 38. Ncxe4 {[%emt 0:00:02]} Re7 {[%emt 0:00:28]} 39. Qc4 {[%emt 0:00:12]} Nh6 {[%emt 0:00:21]} 40. Bd8 {[%emt 0:00:15]} Rd7 {[%emt 0:00:01]} 41. dxc6 {[%emt 0:00:02]} bxc6 {[%emt 0:00:03]} 42. Rxd7 {[%emt 0:00:16]} Bxd7 {[%emt 0:00:02]} 43. Be7 {[%emt 0:00:11]} Be6 {[%emt 0:00:09]} 44. Nxe6 {[%emt 0:00:04]} Nxe6 {[%emt 0:00:01]} 45. Qd3 {[%emt 0:00:08]} Kh8 {[%emt 0:00:06]} 46. Bd6 {[%emt 0:00:02]} Bd4+ {[%emt 0:00:02]} 47. Kg2 {[%emt 0:00:06]} Ng4 {[%emt 0:00:00]} 48. Be5+ {[%emt 0:00:02]} Bxe5 {[%emt 0:00:03]} 49. fxe5 {[%emt 0:00:02]} Nxe5 {[%emt 0:00:01]} 50. Qe2 {[%emt 0:00:04]} Ng4 {[%emt 0:00:03]} 51. Rf1 {[%emt 0:00:02]} Qe5 {[%emt 0:00:01]} 52. Rxf7 {[%emt 0:00:03]} Nd4 {[%emt 0:00:02]} 53. Rf8+ {[%emt 0:00:04]} Kg7 {[%emt 0:00:01]} 54. Qf1 {[%emt 0:00:00]} Ne3+ {[%emt 0:00:01]} 55. Kg1 {[%emt 0:00:02]} Nxf1 {[%emt 0:00:01]} 0-1

[Event "2nd Father Cup Blitz 2023"]
[Site "Rasht"]
[Date "2023.12.07"]
[Round "5.4"]
[White "Daghli, Arash"]
[Black "Sadeh, Shahin"]
[Result "1-0"]
[ECO "D46"]
[WhiteElo "2410"]
[BlackElo "2202"]
[Annotator "RC"]
[PlyCount "51"]
[EventDate "2023.12.07"]
[EventType "swiss"]
[EventCountry "IRI"]
[SourceTitle "playchess.com"]
[Source "ChessBase"]
[SourceQuality "1"]
[TimeControl "300+2"]

1. c4 {[%emt 0:00:01]} c6 {[%emt 0:00:02]} 2. Nf3 {[%emt 0:00:02]} d5 {[%emt 0:00:00]} 3. e3 {[%emt 0:00:01]} Nf6 {[%emt 0:00:01]} 4. Nc3 {[%emt 0:00:00]} e6 {[%emt 0:00:04]} 5. b3 {[%emt 0:00:02]} Be7 {[%emt 0:00:02]} 6. Bb2 {[%emt 0:00:00]} O-O {[%emt 0:00:01]} 7. d4 {[%emt 0:00:06]} Nbd7 {[%emt 0:00:04]} 8. Bd3 {[%emt 0:00:01]} Re8 {[%emt 0:00:07]} 9. O-O {[%emt 0:00:02]} h6 {[%emt 0:00:01]} 10. e4 {[%emt 0:00:03]} dxe4 {[%emt 0:00:01]} 11. Nxe4 {[%emt 0:00:01]} Nxe4 {[%emt 0:00:01]} 12. Bxe4 {[%emt 0:00:01]} Nf6 {[%emt 0:00:01]} 13. Bc2 {[%emt 0:00:00]} c5 {[%emt 0:00:05]} 14. Qe2 {[%emt 0:00:01]} cxd4 {[%emt 0:00:04]} 15. Rad1 {[%emt 0:00:02]} e5 {[%emt 0:00:28]} 16. Qxe5 {[%emt 0:00:29]} Bg4 {[%emt 0:01:57]} 17. Rxd4 {[%emt 0:00:09]} Qc8 {[%emt 0:00:01]} 18. Qf4 {[%emt 0:00:50]} Bc5 {[%emt 0:00:15]} 19. Rd3 {[%emt 0:01:05]} Re2 {[%emt 0:00:55]} 20. Bxf6 {[%emt 0:00:03]} Rxc2 {[%emt 0:00:00]} 21. Ne5 {[%emt 0:00:24]} Be2 {[%emt 0:00:05]} 22. Rg3 {[%emt 0:00:19]} Bxf1 {[%emt 0:00:18]} 23. Rxg7+ {[%emt 0:00:02]} Kf8 {[%emt 0:00:02]} 24. Be7+ {[%emt 0:00:07]} Kxe7 {[%emt 0:00:32]} 25. Qxf7+ {[%emt 0:00:01]} Kd6 {[%emt 0:00:04]} 26. Qd5# {[%emt 0:00:01]} 1-0

[Event "2nd Father Cup Blitz 2023"]
[Site "Rasht"]
[Date "2023.12.07"]
[Round "6.1"]
[White "Rastbod, Ali"]
[Black "Maghsoodloo, Parham"]
[Result "0-1"]
[ECO "A29"]
[WhiteElo "2221"]
[BlackElo "2742"]
[Annotator "TA"]
[PlyCount "119"]
[EventDate "2023.12.07"]
[EventType "swiss"]
[EventCountry "IRI"]
[SourceTitle "playchess.com"]
[Source "ChessBase"]
[SourceQuality "1"]
[TimeControl "300+2"]

{[%evp 11,119,12,0,8,14,0,34,15,25,-18,-10,-11,-20,-18,-20,-54,-54,-49,-56,-59,-45,-64,-31,-64,-39,-61,66,64,101,53,81,0,10,0,0,0,0,0,0,0,0,0,0,0,0,0,0,0,0,0,0,-237,-237,-237,-237,-237,-237,-231,-228,-282,-279,-282,-282,-367,-335,-379,-377,-364,-347,-313,-242,-240,-221,-340,-264,-285,-278,-503,-290,-671,-664,-656,-646,-608,-469,-401,-329,-632,-621,-651,-649,-29980,-29981,-29981,-29982,-29982,-29983,-29983,-29984,-29984,-29985,-29985,-29986,-29986,-29987,-29987,-29988,-29988,-29989,-29989]} 1. c4 {[%emt 0:00:01]} Nf6 {[%emt 0:00:02]} 2. Nc3 {[%emt 0:00:01]} e5 {[%emt 0:00:03]} 3. Nf3 {[%emt 0:00:01]} Nc6 {[%emt 0:00:01]} 4. g3 {[%emt 0:00:03]} Bb4 {[%emt 0:00:03]} 5. Nd5 {[%emt 0:00:01]} e4 {[%emt 0:00:10]} 6. Nh4 {[%emt 0:00:35]} d6 {[%emt 0:00:09]} 7. Nxb4 {[%emt 0:00:23] A29: English Opening: Four Knights Variation with 4 g3.} Nxb4 {[%emt 0:00:01]} 8. a3 {[%emt 0:00:00] [#]} Na6 $146 {[%emt 0:00:08]} ({Predecessor:} 8... Nc6 9. b4 O-O 10. Bb2 Ne5 11. Bxe5 dxe5 12. Ng2 Qe7 13. Ne3 Be6 14. Bg2 a5 {0-1 Videki,S (2363)-Grigoriants,S (2562) HUN-ch Rapid 2023 (9)}) 9. b4 {[%emt 0:00:10] White is slightly better.} c5 {[%emt 0:00:19]} 10. Rb1 {[%emt 0:00:18]} O-O {[%emt 0:00:06]} 11. Ng2 {[%emt 0:00:02]} d5 {[%emt 0:00:08]} 12. cxd5 {[%emt 0:00:12]} Nxd5 {[%emt 0:00:13]} 13. b5 {[%emt 0:00:20]} Nac7 {[%emt 0:00:01]} 14. Qc2 {[%emt 0:00:01][%csl LRc5,LRe4]} b6 {[%emt 0:00:18]} 15. Ne3 {[%emt 0:00:15]} Ne6 {[%emt 0:00:25]} 16. Bg2 {[%emt 0:01:17] And now Nxd5 would win.} f5 {[%emt 0:00:47]} 17. Qc4 {[%emt 0:00:01] Repels Nd4} Bb7 {[%emt 0:00:12]} 18. O-O {[%emt 0:00:33]} Nd4 {[%emt 0:00:07] Black is more active.} (18... Qd7 $15) 19. Bb2 $14 {[%emt 0:00:07]} Rc8 {[%emt 0:00:02] [#]} 20. Rfe1 {[%emt 0:00:22]} (20. f3 $1 $16 {[%cal Rf3e4]} exf3 21. Rxf3) 20... f4 {[%emt 0:00:37] [#]} 21. gxf4 {[%emt 0:00:11]} ({Better is} 21. Bxe4 $1 $16 fxe3 22. dxe3) 21... Rxf4 {[%emt 0:00:01][%cal Od4f3]} 22. Bxd4 {[%emt 0:00:19]} cxd4 {[%emt 0:00:01]} 23. Qxd4 {[%emt 0:00:01]} Qg5 {[%emt 0:00:01]} 24. Nxd5 {[%emt 0:00:16]} Bxd5 {[%emt 0:00:03]} 25. Qe3 {[%emt 0:00:02]} Rcf8 {[%emt 0:00:10]} 26. Rf1 {[%emt 0:00:01]} R8f6 {[%emt 0:00:10] Threatens to win with ...Rg6.} 27. Kh1 {[%emt 0:00:07]} ({Don't go for} 27. Qg3 $2 Rg4 28. h4 Rxg3 $19) 27... h6 {[%emt 0:00:10]} 28. Rbc1 {[%emt 0:00:08]} Kh7 {[%emt 0:00:17]} 29. Rc3 {[%emt 0:00:00]} Rg6 {[%emt 0:00:15][%csl Gg6][%cal Rg5g2]} 30. Rg1 {[%emt 0:00:02]} Qh4 $40 {[%emt 0:00:03][%mdl 128] Black attacks.} 31. f3 {[%emt 0:00:07] Black keeps a firm grip on the game.} (31. Qd4 $11 Qxf2 32. Qxf2 Rxf2 33. Re3) 31... exf3 $19 {[%emt 0:00:12]} 32. exf3 {[%emt 0:00:00] [#]} Bxf3 $1 {[%emt 0:00:07][%mdl 512]} 33. Qxf3 {[%emt 0:00:04]} (33. Bxf3 $2 {gets mated.} Qxh2+ 34. Kxh2 Rh4#) 33... Rxf3 {[%emt 0:00:03]} 34. Rxf3 {[%emt 0:00:01]} Qd4 {[%emt 0:00:13]} 35. d3 {[%emt 0:00:02]} h5 {[%emt 0:00:10]} 36. Rf5 {[%emt 0:00:02]} Kh6 {[%emt 0:00:05]} (36... Qxd3 $2 {too greedy.} 37. Rxh5+ Rh6 38. Rg5 $19) 37. Rf3 {[%emt 0:00:03]} Qc5 {[%emt 0:00:09]} 38. a4 {[%emt 0:00:02]} Qd4 {[%emt 0:00:02]} 39. Rgf1 {[%emt 0:00:04]} Qg4 {[%emt 0:00:10][%csl Gg6][%cal Rg4g2]} 40. R3f2 {[%emt 0:00:01]} Rf6 {[%emt 0:00:04]} 41. Rxf6+ {[%emt 0:00:02]} gxf6 {[%emt 0:00:01]} 42. Rxf6+ {[%emt 0:00:01][%mdl 4096] Endgame KQ-KRB} (42. Be4 $142 Qe6 43. Rf5) 42... Kg7 {[%emt 0:00:00]} 43. Rf3 {[%emt 0:00:04] Strongly threatening Rg3.} Qxa4 {[%emt 0:00:02]} 44. Rg3+ $2 {[%emt 0:00:01]} (44. Rf5) 44... Kf6 {[%emt 0:00:01]} 45. Bc6 $2 {[%emt 0:00:01]} (45. Rf3+ Ke7 46. Rf5) 45... Qd1+ {[%emt 0:00:04]} 46. Kg2 {[%emt 0:00:01]} Qe2+ {[%emt 0:00:01]} 47. Kg1 {[%emt 0:00:02]} h4 {[%emt 0:00:02]} 48. Rf3+ {[%emt 0:00:01]} Ke5 {[%emt 0:00:01]} 49. d4+ $2 {[%emt 0:00:06]} (49. Be4) 49... Kxd4 {[%emt 0:00:04]} 50. Rf4+ {[%emt 0:00:00]} Ke5 {[%emt 0:00:01]} 51. Re4+ {[%emt 0:00:05]} Qxe4 $1 {[%emt 0:00:01] Black mates.} 52. Bxe4 {[%emt 0:00:00]} Kxe4 {[%emt 0:00:01] K3P-KPP} 53. Kg2 {[%emt 0:00:01]} Kd5 {[%emt 0:00:05]} 54. Kh3 {[%emt 0:00:01]} Kc5 {[%emt 0:00:00]} 55. Kxh4 {[%emt 0:00:00]} Kxb5 {[%emt 0:00:01]} 56. Kg5 {[%emt 0:00:02]} a5 {[%emt 0:00:00][%cal Ba7a5,Ba5a4,Ba4a3,Ba3a2][%mdl 32]} 57. h4 {[%emt 0:00:00]} a4 {[%emt 0:00:01]} 58. h5 {[%emt 0:00:01]} a3 {[%emt 0:00:00]} 59. h6 {[%emt 0:00:00]} a2 {[%emt 0:00:01]} 60. h7 {[%emt 0:00:01] Weighted Error Value: White=0.49/Black=0.24 (precise)} 0-1

[Event "2nd Father Cup Blitz 2023"]
[Site "Rasht"]
[Date "2023.12.07"]
[Round "6.2"]
[White "Mahdavi, Reza"]
[Black "Pourramezanali, Amirreza"]
[Result "1-0"]
[ECO "C02"]
[WhiteElo "2312"]
[BlackElo "2500"]
[Annotator "RC"]
[PlyCount "63"]
[EventDate "2023.12.07"]
[EventType "swiss"]
[EventCountry "IRI"]
[SourceTitle "playchess.com"]
[Source "ChessBase"]
[SourceQuality "1"]
[TimeControl "300+2"]

1. e4 {[%emt 0:05:04]} e6 2. d4 d5 3. e5 c5 4. c3 Nc6 {[%emt 0:05:10]} 5. Nf3 Bd7 6. Be2 {[%emt 0:00:10]} Nge7 {[%emt 0:00:04]} 7. Na3 cxd4 {[%emt 0:00:02]} 8. cxd4 {[%emt 0:00:04]} Ng6 {[%emt 0:00:02]} 9. Nc2 {[%emt 0:00:02]} Be7 10. g3 {[%emt 0:00:02]} O-O {[%emt 0:00:04]} 11. h4 {[%emt 0:00:02]} f6 {[%emt 0:00:02]} 12. h5 {[%emt 0:00:02]} Nh8 13. exf6 {[%emt 0:00:02]} Bxf6 {[%emt 0:00:04]} 14. Bf4 {[%emt 0:00:02]} Nf7 {[%emt 0:00:02]} 15. Qd2 {[%emt 0:00:02]} Qe7 {[%emt 0:00:02]} 16. O-O {[%emt 0:00:02]} Nd6 {[%emt 0:00:02]} 17. Bd3 {[%emt 0:00:02]} Be8 {[%emt 0:00:02]} 18. h6 {[%emt 0:00:02]} Bh5 {[%emt 0:00:02]} 19. Ne5 {[%emt 0:00:02]} g5 {[%emt 0:00:02]} 20. Nxc6 {[%emt 0:00:02]} bxc6 {[%emt 0:00:02]} 21. Be5 {[%emt 0:00:02]} Nf7 {[%emt 0:00:02]} 22. f4 {[%emt 0:00:02]} Bxe5 {[%emt 0:00:02]} 23. fxe5 {[%emt 0:00:02]} Nxh6 {[%emt 0:00:02]} 24. Qh2 Rxf1+ {[%emt 0:00:02]} 25. Rxf1 {[%emt 0:00:04]} Qe8 26. Ne3 {[%emt 0:00:02]} Bg6 {[%emt 0:00:04]} 27. Qxh6 {[%emt 0:00:02]} Bxd3 28. Rf6 Bg6 {[%emt 0:00:04]} 29. Ng4 {[%emt 0:00:04]} Rb8 {[%emt 0:00:02]} 30. b3 {[%emt 0:00:02]} Rb7 {[%emt 0:00:02]} 31. Rf2 {[%emt 0:00:02]} Qe7 {[%emt 0:00:02]} 32. Nf6+ {[%emt 0:00:02]} 1-0

[Event "2nd Father Cup Blitz 2023"]
[Site "Rasht"]
[Date "2023.12.07"]
[Round "6.3"]
[White "Poormosavi, Seyed Kian"]
[Black "Daghli, Arash"]
[Result "0-1"]
[ECO "D02"]
[WhiteElo "2384"]
[BlackElo "2410"]
[Annotator "RC"]
[PlyCount "90"]
[EventDate "2023.12.07"]
[EventType "swiss"]
[EventCountry "IRI"]
[SourceTitle "playchess.com"]
[Source "ChessBase"]
[SourceQuality "1"]
[TimeControl "300+2"]

1. Nf3 {[%emt 0:00:01]} d5 {[%emt 0:00:01]} 2. g3 {[%emt 0:00:01]} g6 {[%emt 0:00:02]} 3. Bg2 {[%emt 0:00:02]} Bg7 {[%emt 0:00:00]} 4. d4 {[%emt 0:00:01]} c6 {[%emt 0:00:01]} 5. O-O {[%emt 0:00:02]} Nf6 {[%emt 0:00:01]} 6. c3 {[%emt 0:00:01]} O-O {[%emt 0:00:02]} 7. a4 {[%emt 0:00:01]} Bf5 {[%emt 0:00:05]} 8. Nbd2 {[%emt 0:00:04]} Nbd7 {[%emt 0:00:06]} 9. Re1 {[%emt 0:00:01]} Re8 {[%emt 0:00:23]} 10. Nh4 {[%emt 0:00:02]} Be6 {[%emt 0:00:01]} 11. a5 {[%emt 0:00:14]} h6 {[%emt 0:00:03]} 12. e4 {[%emt 0:00:18]} dxe4 {[%emt 0:00:03]} 13. Nxe4 {[%emt 0:00:01]} Nxe4 {[%emt 0:00:01]} 14. Bxe4 {[%emt 0:00:01]} Bd5 {[%emt 0:00:06]} 15. Bxd5 {[%emt 0:00:09]} cxd5 {[%emt 0:00:01]} 16. Qb3 {[%emt 0:00:00]} e5 {[%emt 0:00:22]} 17. Qxd5 {[%emt 0:01:53]} exd4 {[%emt 0:00:05]} 18. Bd2 {[%emt 0:00:06]} Ne5 {[%emt 0:01:10]} 19. Qxd8 {[%emt 0:00:53]} Raxd8 {[%emt 0:00:02]} 20. cxd4 {[%emt 0:00:03]} Rxd4 {[%emt 0:00:15]} 21. Bc3 {[%emt 0:00:02]} Rdd8 {[%emt 0:00:02]} 22. Rad1 {[%emt 0:00:15]} Rxd1 {[%emt 0:00:21]} 23. Rxd1 {[%emt 0:00:00]} Nc6 {[%emt 0:00:02]} 24. Bxg7 {[%emt 0:00:39]} Kxg7 {[%emt 0:00:01]} 25. a6 {[%emt 0:00:37]} bxa6 {[%emt 0:00:01]} 26. Rd6 {[%emt 0:00:04]} Nb4 {[%emt 0:00:15]} 27. Rd7 {[%emt 0:00:04]} Re1+ {[%emt 0:00:13]} 28. Kg2 {[%emt 0:00:01]} Re2 {[%emt 0:00:01]} 29. b3 {[%emt 0:00:11]} Rb2 {[%emt 0:00:22]} 30. Nf3 {[%emt 0:00:01]} Kf6 {[%emt 0:00:18]} 31. Nd2 {[%emt 0:00:10]} Ke6 {[%emt 0:00:06]} 32. Rd4 {[%emt 0:00:02]} Nc6 {[%emt 0:00:59]} 33. Re4+ {[%emt 0:00:08]} Kd5 {[%emt 0:00:02]} 34. Re2 {[%emt 0:00:00]} Nd4 {[%emt 0:00:01]} 35. Re7 {[%emt 0:00:01]} Rxd2 {[%emt 0:00:02]} 36. Rxf7 {[%emt 0:00:01]} Nxb3 {[%emt 0:00:15]} 37. Rf6 {[%emt 0:00:01]} a5 {[%emt 0:00:17]} 38. Rxg6 {[%emt 0:00:01]} a4 {[%emt 0:00:10]} 39. Ra6 {[%emt 0:00:03]} Nc5 {[%emt 0:00:00]} 40. Rxa7 {[%emt 0:00:02]} Kc4 {[%emt 0:00:00]} 41. g4 {[%emt 0:00:02]} Kb4 {[%emt 0:00:00]} 42. h4 {[%emt 0:00:03]} a3 {[%emt 0:00:02]} 43. g5 {[%emt 0:00:01]} hxg5 {[%emt 0:00:01]} 44. hxg5 {[%emt 0:00:01]} a2 {[%emt 0:00:03]} 45. Kg3 {[%emt 0:00:04]} Na4 {[%emt 0:00:01]} 0-1